bitfinex-derivatives/quotes_BTCF0:USTF0_20250320
["timestamp","ask_amount","ask_price","bid_price","bid_amount"]
[1742430752480,0.2132372,86790.0,86789.0,0.0921572]
[1742430752675,0.0921594,86788.0,86787.0,0.0921588]
[1742430753486,0.0921555,86791.0,86790.0,0.0921551]
[1742430754885,0.0951555,86791.0,86790.0,0.0921551]
[1742430755276,0.003,86791.0,86790.0,0.0921551]
[1742430755484,0.003,86791.0,86790.0,0.2717551]
[1742430755881,0.003,86791.0,86790.0,0.4688551]
[1742430756172,0.0460733,86799.0,86798.0,0.0921466]
[1742430756576,0.1,86800.0,86799.0,0.0921466]
[1742430756985,0.1921456,86800.0,86799.0,0.0921466]
[1742430757186,0.0460722,86802.0,86798.0,0.0921466]
[1742430757187,0.12104,86805.0,86804.0,0.0921413]
[1742430757381,0.0921384,86807.0,86806.0,0.0921392]
[1742430758289,0.2769384,86807.0,86806.0,0.0921392]
[1742430758985,0.0921403,86805.0,86804.0,0.4529409]
[1742430759579,0.2769403,86805.0,86804.0,0.4529409]
[1742430759980,0.2769403,86805.0,86804.0,0.0921409]
[1742430760874,0.2789403,86805.0,86804.0,0.0921409]
[1742430764986,0.2789403,86805.0,86802.0,0.0460713]
[1742430765291,0.2789403,86805.0,86760.0,0.15294641]
[1742430765292,0.0921488,86797.0,86794.0,0.0921513]
[1742430765487,0.0460712,86803.0,86796.0,0.40704726]
[1742430765695,0.1768,86804.0,86803.0,0.0921424]
[1742430765890,0.2689413,86804.0,86803.0,0.0921424]
[1742430766694,0.2689413,86804.0,86803.0,0.4529424]
[1742430767889,0.2709413,86804.0,86803.0,0.4529424]
[1742430768389,0.2709413,86804.0,86803.0,0.3608]
[1742430769095,0.2709413,86804.0,86803.0,0.4529424]
[1742430772605,0.2709413,86804.0,86803.0,1.9529424]
[1742430772911,0.002,86804.0,86803.0,1.9529424]
[1742430773588,0.87584001,86814.0,86813.0,0.0921318]
[1742430773898,0.87524,86814.0,86813.0,0.0921318]
[1742430774097,0.3492,86818.0,86817.0,0.0921275]
[1742430774291,0.1842,86828.0,86827.0,0.0921169]
[1742430774503,0.4550159,86828.0,86827.0,0.0921169]
[1742430775201,0.0921243,86820.0,86819.0,0.00017276]
[1742430775395,0.0921243,86820.0,86819.0,0.09229816]
[1742430775595,0.0921243,86820.0,86819.0,0.00017276]
[1742430776004,0.4335243,86820.0,86819.0,0.09229816]
[1742430776705,0.44523068,86820.0,86819.0,0.00017276]
[1742430778296,0.44523068,86820.0,86819.0,3.725e-05]
[1742430782899,0.0921381,86807.0,86806.0,0.0921389]
[1742430783107,0.0921392,86806.0,86805.0,0.1708]
[1742430783306,0.0921456,86800.0,86791.0,0.0460772]
[1742430783501,0.092153,86793.0,86792.0,0.1708]
[1742430783706,0.092153,86793.0,86790.0,0.3608]
[1742430783707,0.0921551,86791.0,86790.0,0.3608]
[1742430783908,0.10351171,86791.0,86790.0,0.3608]
[1742430784312,0.45721171,86791.0,86790.0,0.3608]
[1742430784811,0.45721171,86791.0,86790.0,1.8608]
[1742430785012,0.45721171,86791.0,86790.0,2.0346]
[1742430785312,0.45721171,86791.0,86786.0,0.1799]
[1742430785313,0.0921636,86783.0,86770.0,0.15294641]
[1742430785609,0.2130836,86783.0,86776.0,0.3558]
[1742430785906,0.2130836,86783.0,86782.0,1.50017276]
[1742430786102,0.2130836,86783.0,86782.0,1.59233746]
[1742430786297,0.2130836,86783.0,86782.0,0.09233746]
[1742430788409,0.0921647,86782.0,86781.0,0.1738]
[1742430788617,0.0921689,86778.0,86777.0,1.5008]
[1742430788811,0.0921689,86778.0,86777.0,1.5]
[1742430789115,0.0921689,86778.0,86777.0,1.59217]
[1742430789710,0.0921689,86778.0,86777.0,1.77847]
[1742430789911,0.0921665,86781.0,86780.0,0.0921657]
[1742430790512,0.4455665,86781.0,86780.0,0.2709657]
[1742430790815,0.0714926,86791.0,86790.0,0.0921562]
[1742430791013,0.01183484,86801.0,86792.0,0.0460769]
[1742430791212,0.42523786,86804.0,86798.0,0.4529477]
[1742430791417,0.0460714,86803.0,86798.0,0.4529477]
[1742430791623,0.0460722,86802.0,86798.0,1.9529477]
[1742430791916,0.09231872,86799.0,86798.0,1.8608]
[1742430792110,0.09231872,86799.0,86798.0,1.5921477]
[1742430792315,0.21323872,86799.0,86798.0,1.5921477]
[1742430792518,0.21323872,86799.0,86798.0,0.0921477]
[1742430792707,0.39683872,86799.0,86798.0,0.0921477]
[1742430794128,0.30469212,86799.0,86798.0,0.0921477]
[1742430794335,0.00017212,86799.0,86798.0,0.0921477]
[1742430794536,0.00017212,86799.0,86798.0,0.1021477]
[1742430794836,0.00017212,86799.0,86798.0,1.6121477]
[1742430796039,0.29832,86812.0,86809.0,0.092135]
[1742430796241,0.29832,86812.0,86811.0,0.0921339]
[1742430796543,0.3904528,86812.0,86811.0,0.0921339]
[1742430796839,0.05458818,86823.0,86817.0,0.0460636]
[1742430797030,0.34051286,86821.0,86820.0,0.0921243]
[1742430797231,0.3767189,86821.0,86820.0,0.0921243]
[1742430797441,0.35192984,86821.0,86820.0,0.0921243]
[1742430797639,0.36591437,86821.0,86820.0,0.0921243]
[1742430798039,0.53761437,86821.0,86820.0,0.0921243]
[1742430798241,0.0921254,86819.0,86818.0,0.1808]
[1742430798433,0.0921328,86813.0,86812.0,0.0921323]
[1742430799033,0.4416328,86813.0,86812.0,0.2774323]
[1742430799233,0.4416328,86813.0,86812.0,0.1853]
[1742430799529,0.4416328,86813.0,86812.0,0.2774328]
[1742430800439,0.092128,86817.0,86816.0,0.0921286]
[1742430800629,0.20306672,86821.0,86816.0,0.0921286]
[1742430800630,0.1381891,86819.0,86818.0,0.0921254]
[1742430801034,0.3147891,86819.0,86818.0,0.0921254]
[1742430801236,0.0460629,86819.0,86818.0,0.0921254]
[1742430801734,0.0921265,86818.0,86817.0,0.2660275]
[1742430801941,0.4431265,86818.0,86817.0,0.2660275]
[1742430802443,0.4431265,86818.0,86817.0,0.1739]
[1742430802845,0.4431265,86818.0,86816.0,0.3608]
[1742430802846,0.0921275,86817.0,86816.0,0.3608]
[1742430803344,0.4426275,86817.0,86816.0,0.3608]
[1742430803845,0.0921339,86811.0,86810.0,0.00017276]
[1742430804039,0.2130539,86811.0,86810.0,0.00017276]
[1742430804434,0.2130539,86811.0,86810.0,0.09230776]
[1742430804635,0.4372339,86811.0,86810.0,0.00017276]
[1742430804835,0.5581539,86811.0,86810.0,0.00017276]
[1742430807440,0.5581539,86811.0,86803.0,0.10924393]
[1742430807441,0.0921413,86804.0,86803.0,0.10924393]
[1742430807647,0.4529413,86804.0,86803.0,0.10924393]
[1742430807831,0.5738213,86804.0,86803.0,0.10924393]
[1742430808235,0.9130213,86804.0,86803.0,0.10924393]
[1742430809543,0.0921498,86796.0,86791.0,0.2666543]
[1742430809743,0.0921498,86796.0,86793.0,0.1762]
[1742430810044,0.4529498,86796.0,86786.0,0.0921602]
[1742430810236,0.4529498,86796.0,86787.0,0.174]
[1742430810438,0.8160498,86796.0,86787.0,0.3521]
[1742430811044,0.8160498,86796.0,86790.0,0.0921557]
[1742430811243,0.8160498,86796.0,86791.0,0.1781]
[1742430811950,0.8160498,86796.0,86787.0,0.174]
[1742430812343,0.8160498,86796.0,86792.0,0.046077]
[1742430812544,0.8160498,86796.0,86789.0,0.0460783]
[1742430812743,0.8160498,86796.0,86791.0,0.0460775]
[1742430813040,0.8160498,86796.0,86793.0,0.0921526]
[1742430813253,0.8160498,86796.0,86794.0,0.0921517]
[1742430813551,0.7239,86796.0,86795.0,0.09232366]
[1742430813851,0.9369298,86796.0,86795.0,0.09232366]
[1742430817447,0.9369298,86796.0,86795.0,0.00017276]
[1742430820442,0.0921689,86778.0,86777.0,1.5]
[1742430820752,0.0921689,86778.0,86777.0,1.67217]
[1742430821552,0.0921689,86778.0,86777.0,1.58]
[1742430821747,0.2642689,86778.0,86777.0,0.081]
[1742430821947,0.3851489,86778.0,86777.0,0.081]
[1742430822545,0.0921764,86771.0,86770.0,0.2695763]
[1742430822745,0.0921764,86771.0,86770.0,0.4999763]
[1742430823345,0.4399764,86771.0,86770.0,0.4999763]
[1742430823547,0.3478,86771.0,86770.0,0.4999763]
[1742430824043,0.3478,86771.0,86770.0,0.5029763]
[1742430824447,0.3478,86771.0,86770.0,0.5049763]
[1742430824847,0.4399764,86771.0,86770.0,0.5049763]
[1742430825550,0.1669653,86777.0,86776.0,0.0921711]
[1742430825755,0.1669653,86777.0,86776.0,0.1121711]
[1742430825949,0.5241653,86777.0,86776.0,0.1121711]
[1742430826150,0.5241653,86777.0,86776.0,1.6121711]
[1742430826349,0.1669653,86777.0,86776.0,1.9527711]
[1742430826652,0.5130981,86781.0,86780.0,0.0921668]
[1742430826852,0.1522981,86781.0,86780.0,0.1921668]
[1742430827257,0.0921666,86781.0,86780.0,0.1921668]
[1742430827558,0.0921666,86781.0,86780.0,0.5314668]
[1742430829350,0.0921647,86782.0,86781.0,0.0921657]
[1742430829547,0.0460817,86784.0,86783.0,0.0921636]
[1742430830657,0.00017276,86786.0,86785.0,0.0921615]
[1742430831455,0.09233316,86786.0,86785.0,0.0921615]
[1742430836445,0.00017276,86786.0,86785.0,0.0921615]
[1742430836955,0.00017276,86786.0,86785.0,0.10371142]
[1742430837258,0.00017276,86786.0,86785.0,0.0921615]
[1742430839047,0.01178453,86796.0,86795.0,0.0921509]
[1742430839254,0.1073506,86804.0,86801.0,0.0921445]
[1742430839462,0.1073506,86804.0,86803.0,0.0921424]
[1742430839661,0.0460671,86811.0,86810.0,0.0921339]
[1742430840260,0.3608,86813.0,86812.0,0.0921328]
[1742430840961,0.4529318,86813.0,86812.0,0.0921328]
[1742430841561,0.6321318,86813.0,86812.0,0.0921328]
[1742430842854,0.3608,86813.0,86812.0,0.0921328]
[1742430843059,0.12696549,86814.0,86813.0,0.0921318]
[1742430843255,0.12696549,86814.0,86813.0,0.1021318]
[1742430843462,0.0921278,86817.0,86816.0,0.0921275]
[1742430843952,0.42044805,86818.0,86817.0,0.0921275]
[1742430844152,0.3613,86818.0,86817.0,0.0921275]
[1742430844364,0.01313895,86826.0,86825.0,0.092119]
[1742430844553,0.3608,86848.0,86825.0,0.092119]
[1742430844554,0.3608,86834.0,86833.0,0.0921106]
[1742430844766,0.3608,86834.0,86831.0,0.0921122]
[1742430844767,0.0921127,86832.0,86831.0,0.0921122]
[1742430844957,0.0921127,86832.0,86831.0,1.51]
[1742430845265,0.1037113,86832.0,86831.0,1.6021127]
[1742430845468,0.4650113,86832.0,86831.0,1.51]
[1742430845767,0.4650113,86832.0,86831.0,0.1021127]
[1742430846268,0.4650113,86832.0,86831.0,0.01]
[1742430846460,0.0921169,86828.0,86827.0,0.0921164]
[1742430846972,0.4484169,86828.0,86827.0,0.1121164]
[1742430847771,0.00060001,86849.0,86841.0,0.046051]
[1742430847968,0.1744,86849.0,86848.0,0.0920946]
[1742430848166,0.3013,86861.0,86860.0,0.0920819]
[1742430848167,0.1805,86861.0,86860.0,0.0920819]
[1742430848365,0.4469809,86861.0,86860.0,0.0920819]
[1742430848567,0.3549,86861.0,86860.0,0.4528819]
[1742430848762,0.36670376,86861.0,86860.0,0.4528819]
[1742430848960,0.1744,86861.0,86860.0,0.4528819]
[1742430849260,1.23628,86873.0,86872.0,0.0920692]
[1742430849261,0.00068,86873.0,86872.0,0.0920692]
[1742430849464,0.10359018,86873.0,86872.0,0.1381025]
[1742430849976,0.1821,86877.0,86876.0,0.092065]
[1742430850265,0.2741639,86877.0,86876.0,0.092065]
[1742430850474,0.4424639,86877.0,86876.0,0.092065]
[1742430851169,0.0920681,86873.0,86872.0,0.3608]
[1742430853570,0.0920756,86866.0,86865.0,0.0920758]
[1742430853871,0.4913052,86872.0,86871.0,0.0920703]
[1742430854171,0.2216347,86872.0,86871.0,0.0920703]
[1742430854362,0.0460225,86895.0,86886.0,0.0920533]
[1742430854675,0.0920554,86885.0,86884.0,0.0460281]
[1742430854862,0.0920607,86882.0,86881.0,0.092059]
[1742430855061,0.0920607,86880.0,86879.0,0.2712612]
[1742430855360,0.0920618,86879.0,86878.0,0.00017264]
[1742430858669,0.2127818,86879.0,86878.0,0.00017264]
[1742430860474,0.2127818,86879.0,86878.0,4e-08]
[1742430864676,0.01152439,86888.0,86883.0,0.0460286]
[1742430864884,0.16887222,86887.0,86886.0,0.4528544]
[1742430865075,0.26092552,86887.0,86884.0,0.344]
[1742430865288,0.0920554,86885.0,86884.0,0.1758]
[1742430865574,0.0920607,86880.0,86879.0,0.1682]
[1742430865970,0.0920607,86880.0,86879.0,0.344]
[1742430866778,0.0920618,86879.0,86878.0,4e-08]
[1742430866987,0.5561818,86879.0,86878.0,4e-08]
[1742430868978,0.5561818,86879.0,86878.0,0.33230004]
[1742430869473,0.5561818,86879.0,86878.0,0.42436284]
[1742430869668,0.5561818,86879.0,86878.0,0.33230004]
[1742430870282,0.1687,86879.0,86878.0,0.42436284]
[1742430870475,0.12068,86881.0,86880.0,0.0920607]
[1742430870785,0.12068,86881.0,86880.0,0.4528607]
[1742430871085,0.2127397,86881.0,86880.0,0.4528607]
[1742430871985,0.12068,86881.0,86880.0,0.4528607]
[1742430872180,0.01152439,86888.0,86883.0,0.0460286]
[1742430872487,0.2127351,86886.0,86885.0,0.0920544]
[1742430872692,0.2127351,86886.0,86885.0,0.4173544]
[1742430872879,0.5464351,86886.0,86885.0,0.4173544]
[1742430874678,0.00017222,86887.0,86886.0,0.0920544]
[1742430874878,0.09222552,86887.0,86886.0,0.4285544]
[1742430876079,0.42732552,86887.0,86886.0,0.4285544]
[1742430876681,0.09222552,86887.0,86886.0,0.4285544]
[1742430877081,0.00017222,86887.0,86886.0,0.4285544]
[1742430877493,0.09222552,86887.0,86886.0,0.4285544]
[1742430878086,0.43482552,86887.0,86886.0,0.4285544]
[1742430878892,0.43482552,86887.0,86886.0,0.3365]
[1742430879192,0.43482552,86887.0,86886.0,0.4285544]
[1742430879392,0.43482552,86887.0,86886.0,0.3365]
[1742430879783,0.09222552,86887.0,86886.0,0.4285544]
[1742430880384,0.00017222,86887.0,86886.0,0.4285544]
[1742430880579,0.1,86900.0,86899.0,0.0920406]
[1742430880788,0.3126795,86900.0,86899.0,0.0920406]
[1742430881088,0.1920395,86900.0,86899.0,0.0920406]
[1742430881487,0.11136554,86900.0,86899.0,0.0920406]
[1742430881689,0.0460069,86925.0,86899.0,0.0920406]
[1742430881690,0.0920226,86918.0,86915.0,0.0460107]
[1742430881995,0.0920215,86917.0,86916.0,0.4272215]
[1742430882288,0.0460084,86922.0,86916.0,0.4272215]
[1742430882289,0.0920205,86920.0,86919.0,0.0920184]
[1742430882488,0.0920215,86917.0,86916.0,0.3352]
[1742430882694,0.0920215,86917.0,86916.0,0.1627]
[1742430884086,0.0920215,86917.0,86916.0,0.2547226]
[1742430886693,0.14927962,86919.0,86918.0,0.0920205]
[1742430886993,0.14927962,86919.0,86916.0,0.3007334]
[1742430886994,0.0920215,86917.0,86916.0,0.1627]
[1742430887193,0.0920237,86915.0,86914.0,0.3608]
[1742430887392,0.09203,86909.0,86908.0,0.00017264]
[1742430887580,0.21267,86909.0,86908.0,0.00017264]
[1742430888296,0.21267,86909.0,86908.0,0.09220374]
[1742430888588,0.21267,86909.0,86908.0,0.00017264]
[1742430888984,0.21267,86909.0,86908.0,0.09220374]
[1742430889288,0.21267,86909.0,86908.0,0.45300374]
[1742430889482,0.21267,86909.0,86908.0,0.36097264]
[1742430890187,0.09203,86909.0,86908.0,0.00017264]
[1742430890388,0.4601664,86906.0,86875.0,0.3608]
[1742430890590,0.0920586,86882.0,86881.0,0.1702]
[1742430890790,0.0460313,86879.0,86867.0,0.63136773]
[1742430890987,0.4528681,86873.0,86872.0,0.1702]
[1742430891192,0.0920777,86864.0,86863.0,0.00867355]
[1742430891384,0.5734777,86864.0,86863.0,0.00867355]
[1742430891892,0.5734777,86864.0,86855.0,0.00017264]
[1742430891893,0.092084,86858.0,86857.0,0.161]
[1742430892582,0.089084,86858.0,86857.0,0.161]
[1742430893187,0.089084,86858.0,86857.0,0.163]
[1742430893584,0.088084,86858.0,86857.0,0.163]
[1742430893991,0.09983453,86858.0,86857.0,0.002]
[1742430894391,0.09983453,86858.0,86857.0,0.005]
[1742430894989,0.09983453,86858.0,86852.0,0.161]
[1742430894990,0.01175053,86858.0,86843.0,0.3608]
[1742430895191,0.0921084,86835.0,86834.0,0.4529092]
[1742430895399,0.0921084,86835.0,86834.0,0.4729092]
[1742430895698,0.0921084,86835.0,86834.0,1.9729095]
[1742430896083,0.2127084,86835.0,86834.0,1.52]
[1742430896289,0.2127084,86835.0,86830.0,0.1641]
[1742430896290,0.0921127,86831.0,86830.0,0.1641]
[1742430896683,0.2087127,86831.0,86830.0,0.1641]
[1742430897285,0.0921159,86828.0,86827.0,0.00116]
[1742430897499,0.2093572,86830.0,86826.0,0.00017274]
[1742430897788,0.0921169,86827.0,86826.0,0.00017274]
[1742430899401,0.0460609,86823.0,86815.0,0.3608]
[1742430899587,0.0921275,86817.0,86816.0,0.1585]
[1742430900887,0.092136,86809.0,86808.0,0.09230984]
[1742430901097,0.212776,86809.0,86808.0,0.15177274]
[1742430901299,0.212776,86809.0,86808.0,0.24390984]
[1742430901698,0.12064,86809.0,86808.0,0.24390984]
[1742430902501,0.12064,86809.0,86808.0,0.40830984]
[1742430903902,0.0460627,86819.0,86811.0,0.0460665]
[1742430904102,0.0460566,86831.0,86824.0,0.0921201]
[1742430904306,0.21293174,86825.0,86824.0,0.0921201]
[1742430904501,0.21293174,86825.0,86824.0,0.317]
[1742430905003,0.21293174,86825.0,86824.0,1.5]
[1742430905506,0.22422776,86825.0,86824.0,1.5]
[1742430905907,0.22422776,86825.0,86824.0,1.817]
[1742430906299,0.12081274,86825.0,86824.0,1.9091201]
[1742430906500,0.00017274,86825.0,86824.0,1.9091201]
[1742430907002,0.09929174,86825.0,86824.0,1.817]
[1742430907207,0.09929174,86825.0,86824.0,1.5]
[1742430907395,0.0921254,86820.0,86819.0,0.0921249]
[1742430907598,0.0921254,86820.0,86819.0,0.2508249]
[1742430907801,0.4024254,86820.0,86819.0,1.7508249]
[1742430908304,0.4024254,86820.0,86819.0,0.2508249]
[1742430908501,0.4044254,86820.0,86819.0,0.2508249]
[1742430909410,0.4044254,86820.0,86819.0,0.4124249]
[1742430909703,0.4044254,86820.0,86819.0,0.1616]
[1742430909904,0.0921286,86816.0,86815.0,0.1587]
[1742430910104,0.0921286,86816.0,86815.0,0.3169]
[1742430910415,0.0921286,86816.0,86815.0,0.4090297]
[1742430911000,0.0921286,86816.0,86815.0,0.3169]
[1742430912001,0.0931286,86816.0,86815.0,0.3169]
[1742430912506,0.0941286,86816.0,86815.0,0.4090297]
[1742430913705,0.002,86816.0,86815.0,0.4090297]
[1742430915001,0.0941286,86816.0,86815.0,1.9090297]
[1742430915419,0.002,86816.0,86815.0,1.9090297]
[1742430916504,0.002,86816.0,86815.0,1.9306736]
[1742430918927,0.0941286,86816.0,86815.0,1.9306736]
[1742430919421,0.002,86816.0,86815.0,1.9306736]
[1742430919623,0.0941286,86816.0,86815.0,1.9306736]
[1742430919819,0.0941286,86816.0,86815.0,1.9190297]
[1742430920922,0.4037286,86816.0,86815.0,1.9190297]
[1742430922320,0.0941286,86816.0,86815.0,1.9190297]
[1742430923017,0.002,86816.0,86815.0,1.9190297]
[1742430924422,0.0941286,86816.0,86815.0,1.9190297]
[1742430925727,0.002,86816.0,86815.0,1.9190297]
[1742430928230,0.0941286,86816.0,86815.0,1.9190297]
[1742430928424,0.0941286,86816.0,86815.0,0.4090297]
[1742430928934,0.092136,86809.0,86804.0,0.4138]
[1742430929126,0.092136,86809.0,86800.0,0.1]
[1742430929325,0.0921445,86801.0,86800.0,0.1]
[1742430929527,0.10413459,86801.0,86800.0,0.1921456]
[1742430930227,0.41963459,86801.0,86800.0,0.1921456]
[1742430930528,0.41963459,86801.0,86800.0,0.1951456]
[1742430931131,0.41963459,86801.0,86800.0,0.107]
[1742430931524,0.32849009,86801.0,86800.0,0.1991456]
[1742430932629,0.33249009,86801.0,86800.0,0.1921456]
[1742430932932,0.004,86801.0,86800.0,0.5529456]
[1742430933135,0.004,86801.0,86800.0,0.5629456]
[1742430933334,0.303,86806.0,86805.0,0.0921403]
[1742430933933,0.0921424,86804.0,86803.0,0.0921418]
[1742430934131,0.0921434,86802.0,86801.0,0.2532429]
[1742430934528,0.0921434,86802.0,86800.0,1.60216]
[1742430934529,0.0921445,86801.0,86800.0,1.60216]
[1742430934726,0.41217897,86801.0,86800.0,0.101]
[1742430935624,0.41217897,86801.0,86800.0,0.1]
[1742430936024,0.41217897,86801.0,86778.0,0.0921687]
[1742430936025,0.0921626,86784.0,86778.0,0.0921687]
[1742430936226,0.0921626,86784.0,86783.0,1.8608]
[1742430936930,0.0921626,86784.0,86783.0,0.4529636]
[1742430937136,0.046083,86781.0,86777.0,0.0460847]
[1742430937436,0.0901689,86778.0,86777.0,0.0560847]
[1742430937826,0.0901689,86778.0,86777.0,1.5560847]
[1742430938736,0.0891689,86778.0,86777.0,1.5560847]
[1742430938934,0.0891689,86778.0,86777.0,1.5600847]
[1742430939134,0.0891689,86778.0,86777.0,0.0600847]
[1742430939323,0.10094987,86778.0,86777.0,0.0600847]
[1742430939528,0.10094987,86778.0,86777.0,0.0630847]
[1742430940134,0.10094987,86778.0,86777.0,0.017]
[1742430940325,0.10094987,86778.0,86777.0,0.09917]
[1742430940531,0.10094987,86778.0,86777.0,0.007]
[1742430941237,0.10094987,86778.0,86777.0,0.09917]
[1742430942233,0.10094987,86778.0,86777.0,0.007]
[1742430943127,0.10094987,86778.0,86777.0,0.09917]
[1742430943632,0.10094987,86778.0,86777.0,0.007]
[1742430943946,0.10094987,86778.0,86777.0,0.09917]
[1742430944930,0.10094987,86778.0,86760.0,0.4138]
[1742430944931,0.092187,86761.0,86760.0,0.4138]
[1742430945136,0.0921955,86753.0,86752.0,0.2907893]
[1742430945443,0.0921955,86753.0,86752.0,2.0151893]
[1742430945643,0.0921955,86753.0,86752.0,0.07]
[1742430945937,0.0921997,86749.0,86748.0,0.0922008]
[1742430946142,0.0831997,86749.0,86748.0,1.7547008]
[1742430946331,0.0460992,86751.0,86750.0,0.0921987]
[1742430946536,0.1951992,86751.0,86750.0,0.0921987]
[1742430946838,0.1921992,86751.0,86750.0,0.0921987]
[1742430947142,0.0921997,86749.0,86748.0,0.1525]
[1742430947350,0.0921997,86749.0,86745.0,1.5012]
[1742430947351,0.0922029,86746.0,86745.0,1.5012]
[1742430947535,0.092204,86745.0,86744.0,0.00011527]
[1742430947735,0.241304,86745.0,86744.0,0.00011527]
[1742430947935,0.238304,86745.0,86744.0,0.00011527]
[1742430948434,0.3077,86745.0,86744.0,0.00011527]
[1742430948638,0.3077,86745.0,86744.0,0.09232037]
[1742430949139,0.3087,86745.0,86744.0,0.25442037]
[1742430949537,0.3097,86745.0,86744.0,0.25442037]
[1742430949737,0.401904,86745.0,86744.0,0.25442037]
[1742430950639,0.3097,86745.0,86744.0,0.25442037]
[1742430951946,0.401904,86745.0,86744.0,0.25442037]
[1742430952247,0.401904,86745.0,86744.0,0.16221527]
[1742430952542,0.401904,86745.0,86744.0,0.25442037]
[1742430953141,0.401904,86745.0,86744.0,0.16221527]
[1742430953445,0.401904,86745.0,86744.0,0.00011527]
[1742430953848,0.401904,86745.0,86744.0,0.09232037]
[1742430954442,0.401904,86745.0,86744.0,0.39812037]
[1742430954847,0.401904,86745.0,86744.0,1.89812037]
[1742430956245,0.401904,86745.0,86744.0,0.39812037]
[1742430956847,0.401904,86745.0,86744.0,0.15651527]
[1742430957040,0.401904,86745.0,86744.0,0.00011527]
[1742430957543,0.0922157,86734.0,86733.0,0.1522]
[1742430957759,0.0922157,86734.0,86733.0,0.1822]
[1742430957940,0.0461132,86724.0,86721.0,0.453029]
[1742430958146,0.0922274,86723.0,86722.0,0.1522]
[1742430958350,0.41411689,86723.0,86722.0,0.4307]
[1742430958547,0.41411689,86723.0,86722.0,0.3007]
[1742430959066,0.41311689,86723.0,86722.0,0.3929284]
[1742430959945,0.32188949,86723.0,86722.0,0.3929284]
[1742430960245,0.41411689,86723.0,86722.0,0.3929284]
[1742430960550,0.12068,86729.0,86728.0,0.0922221]
[1742430960754,0.04628235,86731.0,86722.0,0.3007]
[1742430961049,0.0922242,86727.0,86726.0,0.0922232]
[1742430961249,0.092227,86725.0,86724.0,0.0922263]
[1742430961456,0.0461108,86729.0,86724.0,0.0922263]
[1742430961457,0.1457,86726.0,86725.0,0.0922253]
[1742430961659,0.1457,86726.0,86725.0,0.4126253]
[1742430961848,0.2958,86726.0,86725.0,0.4126253]
[1742430962047,0.4000059,86726.0,86725.0,0.3204]
[1742430962256,0.4000059,86726.0,86725.0,0.4126253]
[1742430962652,0.4000059,86726.0,86725.0,0.3204]
[1742430962854,0.4000059,86726.0,86725.0,0.01]
[1742430963046,0.0922274,86723.0,86722.0,0.1506]
[1742430963354,0.0922348,86716.0,86715.0,0.2378354]
[1742430963653,0.0922348,86716.0,86715.0,0.2678354]
[1742430963955,0.0922348,86716.0,86715.0,0.1456]
[1742430964364,0.092238,86713.0,86712.0,0.1506]
[1742430965460,0.3023,86716.0,86712.0,0.1506]
[1742430965655,0.3086,86714.0,86713.0,0.247138]
[1742430965959,0.400837,86714.0,86713.0,0.398938]
[1742430966151,0.3086,86714.0,86713.0,0.398938]
[1742430966561,0.400837,86714.0,86713.0,0.398938]
[1742430966754,0.400837,86714.0,86713.0,0.3067]
[1742430967454,0.400837,86714.0,86713.0,0.398938]
[1742430969863,0.400837,86714.0,86713.0,0.3067]
[1742430970767,0.400837,86714.0,86713.0,0.1518]
[1742430970962,0.0922444,86707.0,86706.0,0.1464]
[1742430971162,0.0922444,86707.0,86706.0,0.2486455]
[1742430971669,0.3159,86708.0,86707.0,0.0922444]
[1742430971859,0.12068,86710.0,86709.0,0.0922423]
[1742430972055,0.1587,86712.0,86711.0,0.0922401]
[1742430972561,0.2509391,86712.0,86711.0,0.0922401]
[1742430973560,0.2539391,86712.0,86711.0,0.0922401]
[1742430973961,0.2569391,86712.0,86711.0,0.0922401]
[1742430975660,0.2549391,86712.0,86711.0,0.0922401]
[1742430975959,0.2589391,86712.0,86711.0,0.0922401]
[1742430977467,0.2549391,86712.0,86711.0,0.0922401]
[1742430977667,0.2579391,86712.0,86711.0,0.0922401]
[1742430978054,0.1657,86712.0,86711.0,0.0922401]
[1742430978370,0.06163561,86722.0,86711.0,0.0922401]
[1742430978371,0.06163561,86722.0,86721.0,0.0922295]
[1742430978565,0.06163561,86722.0,86721.0,0.4530295]
[1742430978864,0.3981199,86730.0,86729.0,0.092221]
[1742430979354,0.41021961,86730.0,86729.0,0.092221]
[1742430979764,0.41021961,86730.0,86729.0,0.401321]
[1742430980063,0.01209971,86730.0,86729.0,0.401321]
[1742430980269,0.0922199,86730.0,86729.0,0.401321]
[1742430980460,0.0952199,86730.0,86729.0,0.401321]
[1742430980656,0.3577199,86730.0,86729.0,0.401321]
[1742430981060,0.36983265,86730.0,86729.0,0.401321]
[1742430981257,0.36983265,86730.0,86729.0,0.3091]
[1742430981460,0.36983265,86730.0,86729.0,0.1556]
[1742430981661,0.52683265,86730.0,86729.0,0.1556]
[1742430981862,0.0922221,86728.0,86727.0,0.0922227]
[1742430982259,0.0922221,86728.0,86727.0,0.2400227]
[1742430983064,0.0922253,86725.0,86724.0,0.0957]
[1742430983266,0.0922284,86722.0,86721.0,0.3608]
[1742430983463,0.0922327,86718.0,86717.0,0.1929327]
[1742430983664,0.0922327,86718.0,86717.0,0.2994327]
[1742430983968,0.0461158,86720.0,86719.0,0.0922316]
[1742430984171,0.1448158,86720.0,86719.0,0.0922316]
[1742430984557,0.0987,86720.0,86719.0,0.0922316]
[1742430984760,0.0987,86720.0,86719.0,0.1022316]
[1742430985359,0.1909306,86720.0,86719.0,0.1022316]
[1742430985564,0.1909306,86720.0,86719.0,0.01]
[1742430985761,0.0942327,86718.0,86717.0,0.1007]
[1742430986264,0.0922401,86711.0,86710.0,0.0965]
[1742430986570,0.0922401,86711.0,86710.0,0.1982]
[1742430987268,0.2920401,86711.0,86710.0,0.1017]
[1742430987772,0.2920401,86711.0,86710.0,0.001]
[1742430988567,0.0922465,86705.0,86704.0,0.0922474]
[1742430988770,0.0922476,86704.0,86703.0,0.0947]
[1742430988966,0.2920476,86704.0,86703.0,0.1047]
[1742430989173,0.2920476,86704.0,86703.0,0.1969487]
[1742430990174,0.2940476,86704.0,86703.0,0.1969487]
[1742430990378,0.2940476,86704.0,86703.0,0.1047]
[1742430990572,0.2940476,86704.0,86703.0,0.1969487]
[1742430991073,0.2950476,86704.0,86703.0,0.1969487]
[1742430991382,0.2950476,86704.0,86700.0,0.1]
[1742430991383,0.0922508,86701.0,86700.0,0.1]
[1742430991576,0.0922508,86701.0,86700.0,0.2]
[1742430991972,0.0922508,86701.0,86700.0,0.3893519]
[1742430992167,0.0922508,86701.0,86700.0,0.23679039]
[1742430992573,0.0922508,86701.0,86700.0,0.13509039]
[1742430992876,0.0932508,86701.0,86700.0,0.13509039]
[1742430993181,0.0942508,86701.0,86700.0,0.13509039]